[Event "Smuk Skak GM Tournament 2021"]
[Site "Skanderborg, Denmark"]
[Date "2021.08.20"]
[Round "7.4"]
[White "Janik, Igor"]
[Black "Brunello, Sabino"]
[Result "0-1"]
[TimeControl "90 minutes + 30 minutes at move 40, 30 secs pr move from move 1"]
[WhiteTitle "IM"]
[BlackTitle "GM"]
[WhiteFideId "1159259"]
[BlackFideId "813613"]
[WhiteElo "2500"]
[BlackElo "2517"]

1. e4 {[%clk 01:30:58]} {[%emt 00:00:02]} e5 {[%clk 01:30:46]} {[%emt
00:00:15]} 2. Nf3 {[%clk 01:31:21]} {[%emt 00:00:06]} Nc6 {[%clk 01:31:13]}
{[%emt 00:00:03]} 3. Bc4 {[%clk 01:31:43]} {[%emt 00:00:07]} Bc5 {[%clk
01:31:14]} {[%emt 00:00:28]} 4. c3 {[%clk 01:32:06]} {[%emt 00:00:07]} Nf6
{[%clk 01:31:40]} {[%emt 00:00:04]} 5. d4 {[%clk 01:32:28]} {[%emt 00:00:07]}
exd4 {[%clk 01:31:54]} {[%emt 00:00:17]} 6. e5 {[%clk 01:32:52]} {[%emt
00:00:06]} d5 {[%clk 01:31:56]} {[%emt 00:00:28]} 7. Bb5 {[%clk 01:33:15]}
{[%emt 00:00:07]} Ne4 {[%clk 01:32:16]} {[%emt 00:00:10]} 8. cxd4 {[%clk
01:33:37]} {[%emt 00:00:08]} Bb6 {[%clk 01:30:40]} {[%emt 00:02:06]} 9. Nc3
{[%clk 01:34:00]} {[%emt 00:00:07]} O-O {[%clk 01:30:32]} {[%emt 00:00:37]} 10.
Be3 {[%clk 01:34:23]} {[%emt 00:00:07]} Nxc3 {[%clk 01:29:58]} {[%emt
00:01:04]} 11. bxc3 {[%clk 01:34:44]} {[%emt 00:00:10]} f6 {[%clk 01:30:24]}
{[%emt 00:00:04]} 12. Bxc6 {[%clk 01:18:20]} {[%emt 00:16:54]} bxc6 {[%clk
01:30:52]} {[%emt 00:00:02]} 13. Qa4 {[%clk 01:18:04]} {[%emt 00:00:46]} Bg4
{[%clk 01:13:30]} {[%emt 00:17:51]} 14. exf6 {[%clk 01:17:50]} {[%emt
00:00:45]} Bxf3 {[%clk 01:11:19]} {[%emt 00:02:41]} 15. fxg7 {[%clk 01:17:57]}
{[%emt 00:00:23]} Rf7 {[%clk 01:02:57]} {[%emt 00:08:51]} 16. gxf3 {[%clk
01:18:14]} {[%emt 00:00:13]} Qf6 {[%clk 01:03:21]} {[%emt 00:00:07]} 17. Rg1
{[%clk 01:06:55]} {[%emt 00:11:49]} c5 {[%clk 01:01:57]} {[%emt 00:01:54]} 18.
Rg3 {[%clk 01:02:53]} {[%emt 00:04:32]} cxd4 {[%clk 00:59:38]} {[%emt
00:02:50]} 19. cxd4 {[%clk 01:03:15]} {[%emt 00:00:07]} c5 {[%clk 00:58:54]}
{[%emt 00:01:14]} 20. Kf1 {[%clk 00:45:59]} {[%emt 00:17:45]} Bc7 {[%clk
00:39:47]} {[%emt 00:19:38]} 21. Rg2 {[%clk 00:44:30]} {[%emt 00:01:59]} c4
{[%clk 00:36:13]} {[%emt 00:04:04]} 22. Re1 {[%clk 00:42:40]} {[%emt 00:02:19]}
Re7 {[%clk 00:34:22]} {[%emt 00:02:22]} 23. h4 {[%clk 00:28:19]} {[%emt
00:14:52]} Qxf3 {[%clk 00:31:11]} {[%emt 00:03:41]} 24. Qc6 {[%clk 00:23:36]}
{[%emt 00:05:13]} Rb8 {[%clk 00:31:27]} {[%emt 00:00:14]} 25. Qh6 {[%clk
00:14:32]} {[%emt 00:09:34]} c3 {[%clk 00:29:13]} {[%emt 00:02:44]} 26. Kg1
{[%clk 00:07:34]} {[%emt 00:07:28]} c2 {[%clk 00:12:05]} {[%emt 00:17:39]} 27.
Rf1 {[%clk 00:07:50]} {[%emt 00:00:14]} Qe4 {[%clk 00:12:01]} {[%emt 00:00:34]}
28. Qf6 {[%clk 00:05:33]} {[%emt 00:02:47]} Re6 {[%clk 00:10:54]} {[%emt
00:01:36]} 29. Qg5 {[%clk 00:05:37]} {[%emt 00:00:25]} Rg6 {[%clk 00:11:04]}
{[%emt 00:00:21]} 30. f3 {[%clk 00:05:59]} {[%emt 00:00:08]} Qe6 {[%clk
00:11:17]} {[%emt 00:00:16]} 0-1

[Event "Smuk Skak GM Tournament 2021"]
[Site "Skanderborg, Denmark"]
[Date "2021.08.20"]
[Round "7.5"]
[White "Pedersen, Nicolai Vesterbæk"]
[Black "Lindgren, Phillip"]
[Result "1/2-1/2"]
[TimeControl "90 minutes + 30 minutes at move 40, 30 secs pr move from move 1"]
[WhiteTitle "IM"]
[BlackTitle "IM"]
[WhiteFideId "1402340"]
[BlackFideId "1713230"]
[WhiteElo "2369"]
[BlackElo "2356"]

1. c4 {[%clk 01:30:57]} {[%emt 01:54:33]} c6 {[%clk 01:30:19]} {[%emt
00:01:45]} 2. d4 {[%clk 01:31:15]} {[%emt 00:00:12]} d5 {[%clk 01:30:33]}
{[%emt 00:00:15]} 3. cxd5 {[%clk 01:31:29]} {[%emt 00:00:17]} cxd5 {[%clk
01:30:54]} {[%emt 00:00:09]} 4. Nc3 {[%clk 01:31:49]} {[%emt 00:00:10]} Nf6
{[%clk 01:30:53]} {[%emt 00:00:30]} 5. Bf4 {[%clk 01:32:02]} {[%emt 00:00:17]}
Nc6 {[%clk 01:30:43]} {[%emt 00:00:40]} 6. e3 {[%clk 01:32:22]} {[%emt
00:00:10]} a6 {[%clk 01:30:23]} {[%emt 00:00:50]} 7. Bd3 {[%clk 01:32:31]}
{[%emt 00:00:20]} Bg4 {[%clk 01:29:53]} {[%emt 00:01:00]} 8. f3 {[%clk
01:32:17]} {[%emt 00:00:45]} Bh5 {[%clk 01:20:46]} {[%emt 00:09:36]} 9. Nge2
{[%clk 01:30:36]} {[%emt 00:02:11]} Bg6 {[%clk 01:15:11]} {[%emt 00:06:05]} 10.
O-O {[%clk 01:24:17]} {[%emt 00:06:49]} e6 {[%clk 01:13:03]} {[%emt 00:02:38]}
11. Rc1 {[%clk 01:22:00]} {[%emt 00:02:47]} Bxd3 {[%clk 01:04:19]} {[%emt
00:09:13]} 12. Qxd3 {[%clk 01:22:22]} {[%emt 00:00:07]} Be7 {[%clk 01:04:43]}
{[%emt 00:00:06]} 13. Na4 {[%clk 01:03:54]} {[%emt 00:18:58]} Nh5 {[%clk
00:47:04]} {[%emt 00:18:10]} 14. Be5 {[%clk 00:55:31]} {[%emt 00:08:52]} f6
{[%clk 00:45:42]} {[%emt 00:01:52]} 15. Bf4 {[%clk 00:53:50]} {[%emt 00:02:12]}
O-O {[%clk 00:45:09]} {[%emt 00:01:02]} 16. Qb3 {[%clk 00:50:04]} {[%emt
00:04:15]} Ra7 {[%clk 00:32:40]} {[%emt 00:13:01]} 17. Nc5 {[%clk 00:45:11]}
{[%emt 00:05:22]} Bxc5 {[%clk 00:30:30]} {[%emt 00:02:41]} 18. dxc5 {[%clk
00:45:12]} {[%emt 00:00:29]} Nxf4 {[%clk 00:27:50]} {[%emt 00:03:09]} 19. Nxf4
{[%clk 00:45:32]} {[%emt 00:00:10]} Re8 {[%clk 00:25:24]} {[%emt 00:02:56]} 20.
e4 {[%clk 00:26:03]} {[%emt 00:19:59]} Qc7 {[%clk 00:22:00]} {[%emt 00:03:54]}
21. exd5 {[%clk 00:15:09]} {[%emt 00:11:24]} Qxf4 {[%clk 00:21:32]} {[%emt
00:00:58]} 22. dxc6 {[%clk 00:15:20]} {[%emt 00:00:19]} bxc6 {[%clk 00:21:33]}
{[%emt 00:00:29]} 23. Rfe1 {[%clk 00:14:54]} {[%emt 00:00:55]} Rae7 {[%clk
00:16:09]} {[%emt 00:05:54]} 24. Rc4 {[%clk 00:11:06]} {[%emt 00:04:18]} Qc7
{[%clk 00:11:40]} {[%emt 00:04:59]} 25. Qb6 {[%clk 00:08:13]} {[%emt 00:03:23]}
Rb8 {[%clk 00:09:36]} {[%emt 00:02:34]} 26. Qxc7 {[%clk 00:08:15]} {[%emt
00:00:29]} Rxc7 {[%clk 00:09:59]} {[%emt 00:00:06]} 27. b3 {[%clk 00:08:00]}
{[%emt 00:00:45]} Kf7 {[%clk 00:09:32]} {[%emt 00:00:57]} 28. f4 {[%clk
00:07:45]} {[%emt 00:00:45]} Rd7 {[%clk 00:06:52]} {[%emt 00:03:10]} 29. Ra4
{[%clk 00:07:06]} {[%emt 00:01:09]} Rb5 {[%clk 00:06:17]} {[%emt 00:01:04]} 30.
Rxa6 {[%clk 00:05:37]} {[%emt 00:02:00]} Rxc5 {[%clk 00:06:40]} {[%emt
00:00:07]} 31. Re2 {[%clk 00:05:47]} {[%emt 00:00:20]} Rd4 {[%clk 00:03:04]}
{[%emt 00:04:06]} 32. g3 {[%clk 00:05:18]} {[%emt 00:00:59]} Kg6 {[%clk
00:01:39]} {[%emt 00:01:54]} 1/2-1/2

[Event "Smuk Skak GM Tournament 2021"]
[Site "Skanderborg, Denmark"]
[Date "2021.08.21"]
[Round "8.1"]
[White "Lindgren, Phillip"]
[Black "Svane, Frederik"]
[Result "1/2-1/2"]
[TimeControl "90 minutes + 30 minutes at move 40, 30 secs pr move from move 1"]
[WhiteTitle "IM"]
[BlackTitle "IM"]
[WhiteFideId "1713230"]
[BlackFideId "12923044"]
[WhiteElo "2356"]
[BlackElo "2438"]

1. d4 {[%clk 01:30:53]} {[%emt 00:00:21]} Nf6 {[%clk 01:30:54]} {[%emt
00:00:04]} 2. c4 {[%clk 01:31:08]} {[%emt 00:00:15]} e6 {[%clk 01:31:19]}
{[%emt 00:00:05]} 3. Nf3 {[%clk 01:31:19]} {[%emt 00:00:18]} d5 {[%clk
01:31:44]} {[%emt 00:00:06]} 4. Nc3 {[%clk 01:30:24]} {[%emt 00:01:25]} dxc4
{[%clk 01:31:55]} {[%emt 00:00:20]} 5. a4 {[%clk 01:27:25]} {[%emt 00:03:29]}
Bb4 {[%clk 01:25:54]} {[%emt 00:06:31]} 6. e3 {[%clk 01:26:05]} {[%emt
00:01:50]} O-O {[%clk 01:26:08]} {[%emt 00:00:16]} 7. Bxc4 {[%clk 01:25:11]}
{[%emt 00:01:25]} b6 {[%clk 01:26:26]} {[%emt 00:00:12]} 8. O-O {[%clk
01:17:18]} {[%emt 00:08:23]} Bb7 {[%clk 01:26:48]} {[%emt 00:00:09]} 9. Qe2
{[%clk 01:15:19]} {[%emt 00:02:28]} Nbd7 {[%clk 01:27:09]} {[%emt 00:00:08]} 10.
Rd1 {[%clk 01:10:46]} {[%emt 00:05:03]} a6 {[%clk 01:27:13]} {[%emt 00:00:26]}
11. Bd3 {[%clk 01:05:01]} {[%emt 00:06:15]} Qe7 {[%clk 01:27:11]} {[%emt
00:00:32]} 12. e4 {[%clk 00:54:23]} {[%emt 00:11:07]} e5 {[%clk 01:27:36]}
{[%emt 00:00:06]} 13. Nxe5 {[%clk 00:49:52]} {[%emt 00:05:01]} Nxe5 {[%clk
01:27:40]} {[%emt 00:00:26]} 14. dxe5 {[%clk 00:50:15]} {[%emt 00:00:08]} Qxe5
{[%clk 01:28:07]} {[%emt 00:00:04]} 15. f4 {[%clk 00:48:41]} {[%emt 00:02:04]}
Bc5+ {[%clk 01:18:41]} {[%emt 00:09:55]} 16. Kh1 {[%clk 00:46:30]} {[%emt
00:02:41]} Qh5 {[%clk 01:18:54]} {[%emt 00:00:18]} 17. Qxh5 {[%clk 00:35:19]}
{[%emt 00:11:41]} Nxh5 {[%clk 01:19:17]} {[%emt 00:00:07]} 18. Be2 {[%clk
00:24:40]} {[%emt 00:11:09]} Nf6 {[%clk 00:57:55]} {[%emt 00:21:53]} 19. e5
{[%clk 00:23:58]} {[%emt 00:01:12]} Ne4 {[%clk 00:58:18]} {[%emt 00:00:06]} 20.
Nxe4 {[%clk 00:24:04]} {[%emt 00:00:24]} Bxe4 {[%clk 00:58:43]} {[%emt
00:00:06]} 21. a5 {[%clk 00:23:13]} {[%emt 00:01:21]} b5 {[%clk 00:52:41]}
{[%emt 00:06:32]} 22. Bd2 {[%clk 00:23:23]} {[%emt 00:00:19]} Bd4 {[%clk
00:22:40]} {[%emt 00:30:32]} 23. Bc3 {[%clk 00:21:53]} {[%emt 00:01:59]} Bxc3
{[%clk 00:22:14]} {[%emt 00:00:57]} 24. bxc3 {[%clk 00:22:16]} {[%emt
00:00:07]} Rfd8 {[%clk 00:22:08]} {[%emt 00:00:36]} 25. Kg1 {[%clk 00:20:47]}
{[%emt 00:01:59]} f6 {[%clk 00:20:00]} {[%emt 00:02:38]} 26. exf6 {[%clk
00:18:33]} {[%emt 00:02:44]} gxf6 {[%clk 00:20:25]} {[%emt 00:00:05]} 27. Kf2
{[%clk 00:18:11]} {[%emt 00:00:52]} Kf8 {[%clk 00:19:32]} {[%emt 00:01:23]} 28.
g4 {[%clk 00:16:28]} {[%emt 00:02:13]} c5 {[%clk 00:19:42]} {[%emt 00:00:20]}
29. Rxd8+ {[%clk 00:11:05]} {[%emt 00:05:54]} Rxd8 {[%clk 00:20:05]} {[%emt
00:00:07]} 30. Rd1 {[%clk 00:11:11]} {[%emt 00:00:23]} Rxd1 {[%clk 00:17:21]}
{[%emt 00:03:15]} 31. Bxd1 {[%clk 00:11:35]} {[%emt 00:00:06]} Ke7 {[%clk
00:14:28]} {[%emt 00:03:23]} 32. Ke3 {[%clk 00:10:21]} {[%emt 00:01:44]} Bd5
{[%clk 00:12:30]} {[%emt 00:02:28]} 33. g5 {[%clk 00:03:15]} {[%emt 00:07:35]}
f5 {[%clk 00:04:51]} {[%emt 00:08:11]} 34. h4 {[%clk 00:02:56]} {[%emt
00:00:48]} Kf8 {[%clk 00:04:44]} {[%emt 00:00:36]} 35. Bc2 {[%clk 00:01:43]}
{[%emt 00:01:43]} Be6 {[%clk 00:05:07]} {[%emt 00:00:07]} 36. Bd1 {[%clk
00:02:00]} {[%emt 00:00:14]} Bd5 {[%clk 00:05:32]} {[%emt 00:00:05]} 37. Bc2
{[%clk 00:01:21]} {[%emt 00:01:09]} Be6 {[%clk 00:05:57]} {[%emt 00:00:05]} 38.
Bd3 {[%clk 00:01:04]} {[%emt 00:00:46]} Bd7 {[%clk 00:05:10]} {[%emt 00:01:17]}
39. Be2 {[%clk 00:00:44]} {[%emt 00:00:50]} Bc6 {[%clk 00:05:33]} {[%emt
00:00:08]} 40. Bd3 {[%clk 00:00:44]} {[%emt 00:00:30]} Bd7 {[%clk 00:05:56]}
{[%emt 00:00:07]} 41. Kd2 {[%clk 00:23:59]} {[%emt 00:07:15]} Kg7 {[%clk
00:34:52]} {[%emt 00:01:33]} 42. Bc2 {[%clk 00:21:28]} {[%emt 00:03:02]} Be6
{[%clk 00:34:31]} {[%emt 00:00:51]} 43. Ke3 {[%clk 00:16:49]} {[%emt 00:05:08]}
Kf8 {[%clk 00:33:26]} {[%emt 00:05:39]} 1/2-1/2

[Event "Smuk Skak GM Tournament 2021"]
[Site "Skanderborg, Denmark"]
[Date "2021.08.21"]
[Round "8.2"]
[White "Solodovnichenko, Yuri"]
[Black "Pedersen, Nicolai Vesterbæk"]
[Result "1/2-1/2"]
[TimeControl "90 minutes + 30 minutes at move 40, 30 secs pr move from move 1"]
[WhiteTitle "GM"]
[BlackTitle "IM"]
[WhiteFideId "14104369"]
[BlackFideId "1402340"]
[WhiteElo "2546"]
[BlackElo "2369"]

1. e4 {[%clk 01:30:57]} {[%emt 05:53:40]} e5 {[%clk 01:30:37]} {[%emt
00:00:18]} 2. Nf3 {[%clk 01:31:21]} {[%emt 00:00:05]} Nc6 {[%clk 01:30:56]}
{[%emt 00:00:11]} 3. Bb5 {[%clk 01:31:42]} {[%emt 00:00:09]} Nf6 {[%clk
01:31:18]} {[%emt 00:00:08]} 4. d3 {[%clk 01:32:01]} {[%emt 00:00:12]} d6
{[%clk 01:27:11]} {[%emt 00:04:37]} 5. c4 {[%clk 01:28:07]} {[%emt 00:04:23]}
g6 {[%clk 01:20:54]} {[%emt 00:06:47]} 6. Nc3 {[%clk 01:19:31]} {[%emt
00:09:06]} Bg7 {[%clk 01:16:27]} {[%emt 00:04:57]} 7. h3 {[%clk 01:14:21]}
{[%emt 00:05:41]} O-O {[%clk 01:14:20]} {[%emt 00:02:37]} 8. Be3 {[%clk
01:13:52]} {[%emt 00:00:59]} Nd7 {[%clk 00:51:41]} {[%emt 00:23:09]} 9. Bxc6
{[%clk 01:12:36]} {[%emt 00:01:46]} bxc6 {[%clk 00:52:03]} {[%emt 00:00:08]} 10.
g4 {[%clk 01:07:18]} {[%emt 00:05:48]} Nb6 {[%clk 00:39:02]} {[%emt 00:13:31]}
11. c5 {[%clk 01:01:03]} {[%emt 00:06:44]} Nd7 {[%clk 00:38:20]} {[%emt
00:01:11]} 12. Qa4 {[%clk 01:00:54]} {[%emt 00:00:39]} Bb7 {[%clk 00:36:13]}
{[%emt 00:02:38]} 13. O-O-O {[%clk 00:58:41]} {[%emt 00:02:42]} Nxc5 {[%clk
00:34:30]} {[%emt 00:02:13]} 14. Bxc5 {[%clk 00:58:52]} {[%emt 00:00:19]} dxc5
{[%clk 00:34:55]} {[%emt 00:00:05]} 15. g5 {[%clk 00:50:52]} {[%emt 00:08:30]}
Qd6 {[%clk 00:30:06]} {[%emt 00:05:19]} 16. Qc2 {[%clk 00:43:03]} {[%emt
00:08:19]} Bc8 {[%clk 00:19:30]} {[%emt 00:11:06]} 17. Na4 {[%clk 00:40:28]}
{[%emt 00:03:05]} f5 {[%clk 00:18:25]} {[%emt 00:01:35]} 18. Nxc5 {[%clk
00:40:19]} {[%emt 00:00:39]} Qe7 {[%clk 00:17:07]} {[%emt 00:01:47]} 19. d4
{[%clk 00:28:15]} {[%emt 00:12:35]} exd4 {[%clk 00:14:54]} {[%emt 00:02:43]} 20.
e5 {[%clk 00:28:34]} {[%emt 00:00:11]} Be6 {[%clk 00:08:00]} {[%emt 00:07:24]}
21. Nxd4 {[%clk 00:23:18]} {[%emt 00:05:46]} Qxg5+ {[%clk 00:07:47]} {[%emt
00:00:42]} 22. Kb1 {[%clk 00:23:38]} {[%emt 00:00:10]} Bd5 {[%clk 00:07:35]}
{[%emt 00:00:43]} 23. Nde6 {[%clk 00:22:57]} {[%emt 00:01:10]} Qe7 {[%clk
00:07:01]} {[%emt 00:01:03]} 24. Nxf8 {[%clk 00:22:06]} {[%emt 00:01:22]} Bxf8
{[%clk 00:06:55]} {[%emt 00:00:36]} 25. Nd3 {[%clk 00:21:54]} {[%emt 00:00:42]}
Bxh1 {[%clk 00:04:13]} {[%emt 00:03:13]} 26. Rxh1 {[%clk 00:22:21]} {[%emt
00:00:03]} Qd7 {[%clk 00:03:31]} {[%emt 00:01:11]} 27. Nf4 {[%clk 00:18:57]}
{[%emt 00:03:55]} Qd4 {[%clk 00:02:51]} {[%emt 00:01:10]} 28. Qxc6 {[%clk
00:17:36]} {[%emt 00:01:50]} Rb8 {[%clk 00:02:21]} {[%emt 00:01:00]} 29. Qd5+
{[%clk 00:15:14]} {[%emt 00:02:52]} Qxd5 {[%clk 00:02:30]} {[%emt 00:00:22]} 30.
Nxd5 {[%clk 00:15:43]} {[%emt 00:00:01]} Rb5 {[%clk 00:02:23]} {[%emt
00:00:37]} 31. Rd1 {[%clk 00:15:36]} {[%emt 00:00:36]} c6 {[%clk 00:00:55]}
{[%emt 00:01:59]} 32. Nf6+ {[%clk 00:15:46]} {[%emt 00:00:20]} Kf7 {[%clk
00:01:12]} {[%emt 00:00:12]} 33. f4 {[%clk 00:08:27]} {[%emt 00:07:49]} Rb4
{[%clk 00:00:51]} {[%emt 00:00:52]} 34. Nxh7 {[%clk 00:08:03]} {[%emt
00:00:54]} Rxf4 {[%clk 00:00:34]} {[%emt 00:00:47]} 35. e6+ {[%clk 00:05:10]}
{[%emt 00:03:23]} Ke8 {[%clk 00:00:41]} {[%emt 00:00:24]} 36. Rd7 {[%clk
00:05:32]} {[%emt 00:00:08]} Be7 {[%clk 00:00:37]} {[%emt 00:00:34]} 37. Rxa7
{[%clk 00:05:58]} {[%emt 00:00:05]} Kd8 {[%clk 00:00:36]} {[%emt 00:00:30]} 38.
a4 {[%clk 00:01:57]} {[%emt 00:04:30]} Rh4 {[%clk 00:00:32]} {[%emt 00:00:34]}
39. a5 {[%clk 00:02:07]} {[%emt 00:00:20]} Rxh7 {[%clk 00:00:39]} {[%emt
00:00:23]} 40. a6 {[%clk 00:02:15]} {[%emt 00:00:23]} Kc8 {[%clk 00:00:38]}
{[%emt 00:00:31]} 41. Rd7 {[%clk 00:26:14]} {[%emt 00:06:30]} Kb8 {[%clk
00:30:53]} {[%emt 00:00:15]} 42. h4 {[%clk 00:25:07]} {[%emt 00:01:38]} f4
{[%clk 00:19:15]} {[%emt 00:12:08]} 43. Kc2 {[%clk 00:24:54]} {[%emt 00:00:43]}
f3 {[%clk 00:18:49]} {[%emt 00:00:57]} 44. Kd3 {[%clk 00:24:33]} {[%emt
00:00:49]} f2 {[%clk 00:16:19]} {[%emt 00:03:00]} 45. Ke2 {[%clk 00:24:48]}
{[%emt 00:00:15]} c5 {[%clk 00:15:35]} {[%emt 00:01:14]} 46. b3 {[%clk
00:23:53]} {[%emt 00:01:25]} Rg7 {[%clk 00:15:15]} {[%emt 00:00:49]} 47. Kf1
{[%clk 00:23:45]} {[%emt 00:00:38]} Rh7 {[%clk 00:15:33]} {[%emt 00:00:12]} 48.
Rb7+ {[%clk 00:22:57]} {[%emt 00:01:18]} Ka8 {[%clk 00:15:16]} {[%emt
00:00:47]} 49. Rd7 {[%clk 00:23:20]} {[%emt 00:00:07]} Kb8 {[%clk 00:15:28]}
{[%emt 00:00:18]} 50. Rb7+ {[%clk 00:23:46]} {[%emt 00:00:03]} Ka8 {[%clk
00:15:54]} {[%emt 00:00:05]} 51. Rd7 {[%clk 00:23:55]} {[%emt 00:00:22]}
1/2-1/2